Cogmind - Beta 16 @@@ ROGUE MODE // 2025.12.08 @ 01:15:29 Player: Parkagirl Result: Destroyed by G-34 Mercenary with Small Laser Performance ------------- Evolutions (1) 500 Regions Visited (2) 400 Robots Destroyed (5) 25 Value Destroyed (185) 185 Prototype IDs (0) 0 Alien Tech Used (0) 0 Bonus (0) 0 TOTAL SCORE: 1110 Bonus ------- None Cogmind --------- Core Integrity 0/400 Matter 189/300 Energy 100/100 System Corruption 0% Temperature Cool (6) Movement Core (350) Ox6 Location -9/Materials Parts ------- > --- POWER (1) -------- (None) > --- PROPULSION (3) --- (None) > --- UTILITY (3) ------ Large Storage Unit > --- WEAPON (2) ------- (None) > --- INVENTORY (15) --- Aluminum Leg Aluminum Leg Compact Wheel Compact Wheel Small Storage Unit Medium Laser Assault Rifle Peak State ------------ > --- POWER ------------ Light Ion Engine > --- PROPULSION ------- Light Treads Light Treads > --- UTILITY ---------- Heat Sink Large Storage Unit > --- WEAPON ----------- Medium Laser Grenade Launcher > --- INVENTORY -------- Ion Engine Aluminum Leg Aluminum Leg Compact Wheel Compact Wheel Small Storage Unit Medium Laser Assault Rifle [Rating: 7] Favorites ----------- Power Light Ion Engine Engine Light Ion Engine Propulsion Light Treads Treads Light Treads Leg Aluminum Leg Utility Large Storage Unit Device Heat Sink Storage Large Storage Unit Weapon Medium Laser Energy Gun Medium Laser Ballistic Gun Assault Rifle Launcher Grenade Launcher Build | -11 -10 -9 ------- Run | Yrd Mat Mat Slots Evolved 2 | . . 2 Power . | . . . Propulsion 1 | . . 1 Utility 1 | . . 1 Weapon . | . . . Parts Attached 14 | 9 3 2 Power 2 | 1 . 1 Engine 2 | 1 . 1 Core . | . . . Reactor . | . . . Propulsion 4 | 4 . . Treads 2 | 2 . . Leg 2 | 2 . . Wheel . | . . . Hover . | . . . Flight . | . . . Utility 4 | 1 2 1 Device 2 | . 1 1 Storage 2 | 1 1 . Processor . | . . . Hackware . | . . . Protection . | . . . Artifact . | . . . Weapon 4 | 3 1 . Energy Gun 2 | 2 . . Energy Cannon . | . . . Ballistic Gun 1 | 1 . . Ballistic Cannon . | . . . Launcher 1 | . 1 . Special Weapon . | . . . Impact Weapon . | . . . Slashing Weapon . | . . . Piercing Weapon . | . . . Special Melee Weapon . | . . . Unidentified Prototypes . | . . . Parts Lost 8 | . 1 7 Power 2 | . . 2 Propulsion 2 | . 1 1 Utility 2 | . . 2 Weapon 2 | . . 2 Highest Loss Streak 7 | . 1 7 To Critical Strikes . | . . . Average Backups 7 | 3 8 7 Power . | . 1 . Propulsion 3 | 2 4 4 Utility . | . 1 1 Weapon 1 | . 1 2 Tool/Special . | . . . Unused Backups 2 | . . 2 Power . | . . . Propulsion 2 | . . 2 Utility . | . . . Weapon . | . . . Tool/Special . | . . . Average Slot Usage (%) 75 | . 88 59 Engine 11 | . 14 8 Treads 17 | . 24 8 Leg 1 | . 2 . Device 8 | . 3 16 Storage 12 | . 14 11 Energy Gun 11 | . 14 8 Ballistic Gun 3 | . 5 . Launcher 7 | . 8 7 Peak Build Rating 7 | 6 7 7 Average Rating 5 | 4 6 5 On Entrance 4 | . 6 6 Avg Prop Armor Cover (%) . | . . . Naked Turns . | . . . Heaviest Build 31 | 12 29 31 Greatest Support 40 | 40 40 20 Greatest Overweight (x) 6 | 1 1 6 Average Overweight (x) . | . . 1 Largest Inventory Capacity 15 | 8 15 15 Average Capacity 13 | 7 14 15 Most Carried 9 | 7 9 8 Average Carried 7 | 3 8 7 Final Capacity 15 | 8 15 15 Final Carried 8 | 6 8 7 Class Distribution -------------------- 100% | Mutant Dominant Class ---------------- Mutant | -10/Materials Mutant | -9/Materials Resources | -11 -10 -9 ----------- Run | Yrd Mat Mat Matter Collected 245 | 184 61 . Remotely . | . . . Salvage Created 148 | . 115 33 Parts 9 | . 5 4 Haulers Intercepted . | . . . Recyclers Shooed . | . . . Parts Field Recycled . | . . . Retrieved Matter . | . . . Parts Self-Destructed . | . . . Prevented . | . . . Parts Restored . | . . . Kills | -11 -10 -9 ------- Run | Yrd Mat Mat Combat Hostiles Destroyed 4 | . 3 1 Melee 1 | . 1 . AOE 3 | . 2 1 Classes Destroyed 2 | . 2 . Watcher 1 | . 1 . Grunt 4 | . 3 1 Best Kill Streak 3 | . 3 1 Combat Bots Only 2 | . 2 1 Max Kills in Single Turn 1 | . 1 1 Gunslinging . | . . . Exploded 1 | . 1 1 Melee 1 | . 1 . Uniques/NPCs Destroyed . | . . . Combat | -11 -10 -9 -------- Run | Yrd Mat Mat Hostile Shots Fired 123 | . 32 91 Missed 28 | . 9 19 Hits 95 | . 23 72 Projectile 95 | . 23 72 Damage Taken 1179 | . 381 798 Core 451 | . 51 400 Absorbed by Shields . | . . . Core Remaining (%) 89 | 100 79 . Volleys Fired 10 | . 7 3 Largest 2 | . 2 2 Hottest 80 | . 80 80 Shots Fired 20 | . 14 6 Gun 12 | . 9 3 Cannon . | . . . Launcher 8 | . 5 3 Special . | . . . Kinetic 2 | . 2 . Thermal 10 | . 7 3 Explosive 8 | . 5 3 Electromagnetic . | . . . Robot Hit Streak 3 | . 3 . Robot Miss Streak 4 | . 4 . Penetration Max . | . . . Secondary Targets . | . . . Shots Hit Robots 4 | . 4 . Core Hits 15 | . 8 7 Critical Kills . | . . . Critical Parts Destroyed . | . . . Critical Strikes 1 | . 1 . Burn 1 | . 1 . Melee Attacks . | . . . Impact . | . . . Slashing . | . . . Piercing . | . . . Sneak Attacks . | . . . Combat Hostiles . | . . . Follow-up Attacks . | . . . Damage Inflicted 322 | . 180 142 Guns 35 | . 35 . Cannons . | . . . Explosions 262 | . 130 132 Melee . | . . . Ramming 25 | . 15 10 Kinetic 10 | . 10 . Thermal 25 | . 25 . Explosive 262 | . 130 132 Electromagnetic . | . . . Impact . | . . . Slashing . | . . . Piercing . | . . . Highest Corruption . | . . . Average Corruption . | . . . Corruption Purged . | . . . Corruption Blocked . | . . . Overload Shots . | . . . Overflow Damage . | . . . Projectiles . | . . . Explosions . | . . . Melee . | . . . Knockbacks . | . . . Impact . | . . . Kinetic . | . . . Secondary . | . . . Self-Inflicted Damage 73 | . 68 5 Shots 4 | . 3 1 Rammed 14 | . 3 11 Targets Rammed 14 | . 3 11 Kicked . | . . . Crushed . | . . . Highest Temperature 81 | . 81 . Average Temperature 33 | . 33 . Received Heat Transfer 609 | . 177 432 Siege Activations . | . . . Martial Activations . | . . . Shielding Activations . | . . . Robots Disrupted . | . . . Combat Hostiles . | . . . Robots Corrupted . | . . . Combat Hostiles . | . . . Parts Fried . | . . . Impact Corruptions . | . . . Robots Melted . | . . . Combat Hostiles . | . . . Parts Melted 1 | . 1 . Heat Transferred 148 | . 148 . Parts Sabotaged . | . . . Parts Stolen . | . . . Parts Stripped . | . . . Power Chain Reactions . | . . . Alert | -11 -10 -9 ------- Run | Yrd Mat Mat Maximum Alert Level . | . . . Low Security (%) 100 | 100 100 100 Level 1 . | . . . Level 2 . | . . . Level 3 . | . . . Level 4 . | . . . Level 5 . | . . . High Security . | . . . Max Security . | . . . Peak Influence 92 | . 92 58 Initial 16 | . . 16 Average 17 | . 29 9 Influence Increases 179 | . 121 58 Destroy 0b10 Robot/C 80 | . 60 20 Destroy 0b10 Robot/NC 5 | . 5 . Destroy Leader 12 | . 12 . Disable Machine 30 | . . 30 Destroy Structure 37 | . 29 8 Lose Combat Pursuer 15 | . 15 . Influence Decreases 179 | . 80 99 Entered New Map 25 | . . 25 Time Decay 106 | . 70 36 Lost Part 48 | . 10 38 Squads Dispatched 2 | . 1 1 Investigation 1 | . . 1 Extermination . | . . . Reinforcement 1 | . 1 . Assault . | . . . Garrison . | . . . Intercept . | . . . Searches Triggered . | . . . Construction Impeded . | . . . Haulers Reinforced . | . . . Active Scanning Responses . | . . . Cargo Convoy Interrupts . | . . . Stealth | -11 -10 -9 --------- Run | Yrd Mat Mat Distress Signals . | . . . Communications Jammed . | . . . Distress Signals . | . . . Times Spotted 11 | . 7 4 Peak Tracking Total 5 | . 3 5 Tactical Retreats 1 | . 1 . Traps | -11 -10 -9 ------- Run | Yrd Mat Mat Traps Triggered . | . . . Indirectly . | . . . Trap Hack Attempts . | . . . Triggered . | . . . Disarmed . | . . . Reprogrammed . | . . . Reused . | . . . Traps Extracted . | . . . Installed . | . . . Triggered . | . . . Machines | -11 -10 -9 ---------- Run | Yrd Mat Mat Machines Disabled 2 | . . 2 Max in Single Turn 1 | . . 1 Machines Repaired . | . . . Machines Dismantled . | . . . Machines Sabotaged . | . . . Overloaded Fab Kills . | . . . Hacking | -11 -10 -9 --------- Run | Yrd Mat Mat Machines Accessed 1 | . . 1 Terminals 1 | . . 1 Fabricators . | . . . Repair Stations . | . . . Recycling Units . | . . . Scanalyzers . | . . . Garrison Access . | . . . Total Hacks 4 | . . 4 Successful . | . . . Failed 4 | . . 4 Catastrophic . | . . . Database Lockouts . | . . . Manual . | . . . Terminals 4 | . . 4 Fabricators . | . . . Repair Stations . | . . . Recycling Units . | . . . Scanalyzers . | . . . Garrison Access . | . . . Terminal Hacks . | . . . Fabricator Hacks . | . . . Repair Station Hacks . | . . . Recycling Unit Hacks . | . . . Scanalyzer . | . . . Garrison Access Hacks . | . . . Unauthorized Hacks . | . . . Terminals . | . . . Fabricators . | . . . Repair Stations . | . . . Recycling Units . | . . . Scanalyzers . | . . . Garrison Access . | . . . Data Cores Recovered . | . . . Used . | . . . Hacking Detections 1 | . . 1 Full Trace Events 1 | . . 1 Feedback Events . | . . . Feedback Blocked . | . . . Robot Schematics Acquired . | . . . Robots Built . | . . . Authchips . | . . . Time . | . . . Total Robot Build Rating . | . . . Part Schematics Acquired . | . . . Parts Built . | . . . Authchips . | . . . Time . | . . . Total Part Build Rating . | . . . Part Studies Acquired . | . . . Parts Repaired . | . . . Time . | . . . Parts Recycled . | . . . Recycled Matter . | . . . Retrieved Matter . | . . . Retrieved Components . | . . . Parts Scanalyzed . | . . . Part Schematics Acquired . | . . . Parts Damaged . | . . . Bothacking | -11 -10 -9 ------------ Run | Yrd Mat Mat Used RIF Installer . | . . . Robots Hacked . | . . . Non-combat . | . . . Combat . | . . . Robot Hacks Applied . | . . . Relay Couplers Released . | . . . Fabnet Peak Effective % . | . . . Robots Rewired . | . . . Allies Hacked . | . . . Hacks Repelled . | . . . Allies | -11 -10 -9 -------- Run | Yrd Mat Mat Total Allies . | . . . Largest Group . | . . . Highest-Rated Group . | . . . Highest-Rated Ally . | . . . Total Orders . | . . . Ally Attacks . | . . . Total Damage . | . . . Kills . | . . . Allies Corrupted . | . . . Allies Melted . | . . . Intel | -11 -10 -9 ------- Run | Yrd Mat Mat Active Infowar (turns) 148 | . . 148 ECM 148 | . . 148 Robot Analysis Total . | . . . Derelict Logs Recovered . | . . . Drone Launches . | . . . Drone Recoveries . | . . . Exploration | -11 -10 -9 ------------- Run | Yrd Mat Mat Turns Passed 611 | 120 279 212 Spaces Moved 295 | 76 156 63 Core 16 | 10 . 6 Treads 224 | 29 138 57 Legs 55 | 37 18 . Wheels . | . . . Hover . | . . . Flight . | . . . Fastest Speed 50 | 50 120 240 Average Speed 170 | 131 156 250 Slowest Speed 350 | 160 240 350 Overloaded Moves . | . . . Propulsion Burnouts . | . . . Robots Hopped . | . . . Potential Cave-ins 3 | . 3 . Cave-ins Triggered . | . . . Exploration Rate (%) 12 | 5 27 6 Regions Visited 2 Branch Regions . Pre-discovered Areas . | . . . Known Exits Taken . | . . . Unknown Exits Taken 2 | 1 1 . Scrap Searched . | . . . Spaces Dug 6 | . . 6 Terrain Destroyed 35 | . 28 7 Melee . | . . . Projectile . | . . . AOE 35 | . 28 7 Terrain Rammed . | . . . Walls Destroyed . | . . . Machines Disabled . | . . . Actions | -11 -10 -9 --------- Run | Yrd Mat Mat Total 345 | 93 173 79 Wait . | . . . Move 294 | 75 156 63 Hop . | . . . Pick Up 11 | 8 3 . Fast Attach 5 | 4 . 1 Attach 5 | 3 1 1 Detach 1 | 1 . . Swap 6 | 2 4 . Drop . | . . . Fire 10 | . 7 3 Melee . | . . . Ram 8 | . . 8 Kick . | . . . Crush 5 | . 2 3 Escape Stasis . | . . . Rewire . | . . . Trap . | . . . Miscellaneous . | . . . Route ------- -11/Scrapyard -10/Materials -9/Materials History --------- Turn | Location | Event 6 | -11/Scrapyard | Discovered new exit (range 15) 121 | -11/Scrapyard | Entered Materials 317 | -10/Materials | Build established: Mutant 360 | -10/Materials | Discovered new exit (range 14) 400 | -10/Materials | Entered another Materials area 400 | -9/Materials | Evolved 2 slots: Propulsion x1, Utility x1 589 | -9/Materials | Core integrity fell below 50% 603 | -9/Materials | Core integrity fell below 20% 612 | -9/Materials | Destroyed by G-34 Mercenary with Small Laser Last Messages --------------- 00561_ U-05 Engineer builds a Wall. 00561_ Slammed into G-34 Mercenary. 00562_ U-05 Engineer lays Concrete. 00564_ U-05 Engineer builds a Wall. 00566_ U-05 Engineer lays Concrete. 00566_ Slammed into G-34 Mercenary. 00567_ U-05 Engineer lays Concrete. 00567_ Heat Sink destroyed. 00568_ U-05 Engineer builds a Wall. 00570_ ECM Suite destroyed. 00571_ Slammed into G-34 Mercenary. 00572_ U-05 Engineer builds a Wall. 00573_ U-05 Engineer lays Concrete. 00575_ Slammed into G-34 Mercenary. 00579_ U-05 Engineer lays Concrete. 00580_ Slammed into G-34 Mercenary. 00582_ Ion Engine destroyed. 00584_ Slammed into G-34 Mercenary. 00585_ U-05 Engineer lays Concrete. 00602_ Slammed into U-05 Engineer. Map ----- +----------------------------------------------------+ | ?????????????????????????????????????????????????? | | ?????????????????????????????????????????????????? | | ?????????????????????????????????????????????????? | | ?????????????????????????????????????????????????? | | ?????????????????????????????????????????????????? | | ?????????????????????????????????????????????????? | | ?????????????????????????????????????????????????? | | ?????????????????????????????????????????????????? | | ?????????????????????????????????????????????????? | | ?????????????????????????????????????????????????? | | ??????????????????????????? !???????????????????? | | ??????????????????????????? ? ???????????????? | | ??????????????????????????? ?????????????? | | ??????????????????????????? #???????????? | | ?????????????????????????## #???????????? | | ????????????????????????? #???????????? | | ????????????????????????? #???????????? | | ?????????????????????????? #???????????? | | ?????????????????????????? #???????????? | | ?????????????????????????? #???????????? | | ??????????????????????????# #???????????? | | ????????????????########### " #???????????? | | ????????????????# # """ +???????????? | | ????????????????# """"g # #???????????? | | ????????????????# """" +! #????????????? | | ????????????????# """""g @# #????????????? | | ????????????????# g # #????????????? | | ????????????????########### #????????????? | | ?????????????????????????# ###??????????? | | ?????????????????????????# " #??????????? | | ?????????????????????????# #??????????? | | ?????????????????????????# #??????????? | | ?????????????????????????# ###+#####?????????? | | ?????????????????????????####### #?????????? | | ???????????????????????????????# #?????????? | | ???????????????????????????????# """ #?????????? | | ???????????????????????????????# """ #?????????? | | ???????????????????????????????# """ #?????????? | | ???????????????????????????????# #?????????? | | ???????????????????????????????# #?????????? | | ???????????????????????????????# #?????????? | | ???????????????????????????????# #?????????? | | ???????????????????????????????# "T" #?????????? | | ???????????????????????????????# #?????????? | | ???????????????????????????????#########?????????? | | ?????????????????????????????????????????????????? | | ?????????????????????????????????????????????????? | | ?????????????????????????????????????????????????? | | ?????????????????????????????????????????????????? | | ?????????????????????????????????????????????????? | +----------------------------------------------------+ Best States ------------- Heat Dissipation 38 Energy Generation 10 Energy Capacity 250 Matter Stores 194 Matter Capacity 300 Sight Range 16 Terrain Scan Density 10 ECM Strength 1 Evasion (%) 55 Recoil Reduction 2 Item Schematics ----------------- None Robot Schematics ------------------ None Fabricated ------------ Nothing Repaired ---------- Nothing Studied --------- None Alien Tech Used ----------------- None Achievements -------------- None Challenges ------------ None Game ------ Seed SuperchargedHoverReactor Manual? 0 Play Time 00:08:38 Cumulative 2.6 hours Start 2025.12.08 @ 01:08:23 End 2025.12.08 @ 01:15:29 Sessions 1 Manual Loads 0 Difficulty Rogue Special Mode None Game No. 5 Rogue 5 Adventurer 0 Explorer 0 Win Type - Total 0 Types 0/0/0/0/0/0/0/0/0/0 Lore% 6 Gallery% 4 Achievement% 6 Wizard Run 0 Options --------- Layout 1 ASCII 0 Keyboard 1 Movement Vi Keybinds 0 Fullscreen 1 Font 24/Cog Map View 50x40 Zoom Use 0% Tactical HUD 1 Map Filters NONE Filters NONE Steam 1 RUN: 998ff0ea-dd73-4ca4-afe0-092de89693eb